[Event "Early-Titled-Tuesday-Blitz-April-16-2024"]
[Site "Chess.com"]
[Date "2024.04.16"]
[Round "6"]
[White "kyuotbi"]
[Black "Tol_Tol"]
[Result "1-0"]
[WhiteElo "2280"]
[BlackElo "2411"]
[TimeControl "180+1"]
[EndTime "9:08:44 PDT"]
[Termination "kyuotbi won by resignation"]

1. e4 {[%clk 0:03:00.9]} 1... c5 {[%clk 0:02:59.7]} 2. Nf3 {[%clk 0:03:00.8]}
2... Nc6 {[%clk 0:03:00.3]} 3. d4 {[%clk 0:03:01]} 3... cxd4 {[%clk 0:02:59.9]}
4. Nxd4 {[%clk 0:03:01.5]} 4... Nf6 {[%clk 0:03:00.6]} 5. Nc3 {[%clk 0:03:01]}
5... e5 {[%clk 0:03:01.3]} 6. Ndb5 {[%clk 0:02:58.8]} 6... d6 {[%clk 0:03:01.5]}
7. Nd5 {[%clk 0:02:59.3]} 7... Nxd5 {[%clk 0:03:01.4]} 8. exd5 {[%clk
0:02:59.7]} 8... Ne7 {[%clk 0:03:02.3]} 9. c4 {[%clk 0:02:59.3]} 9... Nf5 {[%clk
0:03:02.4]} 10. Bd3 {[%clk 0:02:51.2]} 10... Be7 {[%clk 0:03:02]} 11. O-O {[%clk
0:02:34.7]} 11... O-O {[%clk 0:03:01.5]} 12. Qc2 {[%clk 0:02:21.4]} 12... g6
{[%clk 0:03:01.3]} 13. a4 {[%clk 0:02:17]} 13... Bd7 {[%clk 0:02:56.6]} 14. Nc3
{[%clk 0:02:15.4]} 14... Rc8 {[%clk 0:02:54.4]} 15. a5 {[%clk 0:02:09.3]} 15...
Nd4 {[%clk 0:02:43.8]} 16. Qd1 {[%clk 0:02:08.1]} 16... f5 {[%clk 0:02:41.2]}
17. f4 {[%clk 0:02:03.3]} 17... e4 {[%clk 0:02:03.6]} 18. Bxe4 {[%clk
0:01:57.9]} 18... Rxc4 {[%clk 0:02:03.2]} 19. Bd3 {[%clk 0:01:55.1]} 19... Rc8
{[%clk 0:01:53.9]} 20. Be3 {[%clk 0:01:53.6]} 20... Bf6 {[%clk 0:01:53.4]} 21.
Rf2 {[%clk 0:01:17.2]} 21... Re8 {[%clk 0:01:46]} 22. Bc1 {[%clk 0:01:15.8]}
22... b5 {[%clk 0:01:35.3]} 23. axb6 {[%clk 0:01:05.4]} 23... Qxb6 {[%clk
0:01:34.5]} 24. Ra6 {[%clk 0:01:05.4]} 24... Qb8 {[%clk 0:01:24.6]} 25. Bf1
{[%clk 0:00:58]} 25... Nb3 {[%clk 0:01:18.9]} 26. Re2 {[%clk 0:00:43]} 26... Nc5
{[%clk 0:00:58.7]} 27. Ra3 {[%clk 0:00:25.6]} 27... Qb6 {[%clk 0:00:56]} 28. Be3
{[%clk 0:00:22]} 28... Rxe3 {[%clk 0:00:55.1]} 29. Rxe3 {[%clk 0:00:22.1]} 29...
Nb7 {[%clk 0:00:37.2]} 30. Na4 {[%clk 0:00:09.1]} 30... Bxa4 {[%clk 0:00:33]}
31. Qxa4 {[%clk 0:00:09.5]} 31... Bd4 {[%clk 0:00:29.7]} 32. Kf2 {[%clk
0:00:09.9]} 32... Qxb2+ {[%clk 0:00:18.1]} 33. Kf3 {[%clk 0:00:09.2]} 33... Bxe3
{[%clk 0:00:16]} 34. Rxe3 {[%clk 0:00:09.9]} 34... Nc5 {[%clk 0:00:05]} 35. Qc4
{[%clk 0:00:10.5]} 35... Qb7 {[%clk 0:00:03.8]} 36. g4 {[%clk 0:00:08.6]} 36...
Qf7 {[%clk 0:00:03.1]} 37. gxf5 {[%clk 0:00:08]} 37... Qxf5 {[%clk 0:00:03.3]}
38. Bd3 {[%clk 0:00:08.2]} 38... Qh5+ {[%clk 0:00:03.2]} 39. Kg2 {[%clk
0:00:08.2]} 39... Rf8 {[%clk 0:00:04.1]} 40. Rh3 {[%clk 0:00:07.8]} 40... Qh4
{[%clk 0:00:04.2]} 41. Rxh4 {[%clk 0:00:07.8]} 41... Rxf4 {[%clk 0:00:03.9]} 42.
Rxf4 {[%clk 0:00:07.9]} 1-0

[Event "Early-Titled-Tuesday-Blitz-April-16-2024"]
[Site "Chess.com"]
[Date "2024.04.16"]
[Round "6"]
[White "LevonAronian"]
[Black "Szparu"]
[Result "0-1"]
[WhiteElo "3059"]
[BlackElo "2845"]
[TimeControl "180+1"]
[EndTime "9:08:45 PDT"]
[Termination "Szparu won on time"]

1. e4 {[%clk 0:02:37.8]} 1... e6 {[%clk 0:03:00.1]} 2. d4 {[%clk 0:02:37.6]}
2... d5 {[%clk 0:03:00.6]} 3. Nc3 {[%clk 0:02:38.3]} 3... Nf6 {[%clk 0:03:00.7]}
4. Bg5 {[%clk 0:02:37.7]} 4... dxe4 {[%clk 0:03:00.3]} 5. Nxe4 {[%clk
0:02:37.6]} 5... Nbd7 {[%clk 0:03:00.8]} 6. Nf3 {[%clk 0:02:36.7]} 6... h6
{[%clk 0:03:00.7]} 7. Bxf6 {[%clk 0:02:35.4]} 7... Nxf6 {[%clk 0:03:00.5]} 8.
Bd3 {[%clk 0:02:35.9]} 8... Be7 {[%clk 0:02:52]} 9. Qe2 {[%clk 0:02:34.4]} 9...
Nd5 {[%clk 0:02:46.7]} 10. Qd2 {[%clk 0:02:27.2]} 10... O-O {[%clk 0:02:33]} 11.
c3 {[%clk 0:02:24.8]} 11... b6 {[%clk 0:02:31.5]} 12. O-O-O {[%clk 0:02:23.3]}
12... Bb7 {[%clk 0:02:26.9]} 13. h4 {[%clk 0:02:21.9]} 13... c5 {[%clk
0:02:24.1]} 14. Bc2 {[%clk 0:02:21]} 14... cxd4 {[%clk 0:02:22.2]} 15. Nxd4
{[%clk 0:02:19.3]} 15... Qc7 {[%clk 0:02:18.4]} 16. g3 {[%clk 0:01:45.7]} 16...
Rad8 {[%clk 0:02:18]} 17. Rhe1 {[%clk 0:01:34.4]} 17... e5 {[%clk 0:01:42.1]}
18. Nb5 {[%clk 0:01:04.3]} 18... Qc4 {[%clk 0:01:40.8]} 19. Qd3 {[%clk
0:00:42.3]} 19... Qxa2 {[%clk 0:01:37.6]} 20. c4 {[%clk 0:00:33.8]} 20... f5
{[%clk 0:01:18.8]} 21. cxd5 {[%clk 0:00:24.5]} 21... fxe4 {[%clk 0:01:18.4]} 22.
Qxe4 {[%clk 0:00:24.4]} 22... Qa1+ {[%clk 0:01:09.9]} 23. Kd2 {[%clk 0:00:24.4]}
23... Qa5+ {[%clk 0:01:09.9]} 24. Kc1 {[%clk 0:00:06.4]} 24... Qa1+ {[%clk
0:01:06.8]} 25. Kd2 {[%clk 0:00:06.2]} 25... Rxf2+ {[%clk 0:01:06.6]} 26. Re2
{[%clk 0:00:03.9]} 26... Qa5+ {[%clk 0:00:45.6]} 27. Nc3 {[%clk 0:00:04.2]}
27... Rxd5+ {[%clk 0:00:36.3]} 28. Qxd5+ {[%clk 0:00:04.6]} 28... Bxd5 {[%clk
0:00:36.5]} 29. Rxf2 {[%clk 0:00:05.2]} 29... Bc5 {[%clk 0:00:24.5]} 30. Re2
{[%clk 0:00:03.7]} 30... Bf3 {[%clk 0:00:13.5]} 31. Bb3+ {[%clk 0:00:04]} 31...
Kh8 {[%clk 0:00:13.5]} 32. Rxe5 {[%clk 0:00:03.8]} 32... Bxd1 {[%clk 0:00:12.2]}
33. Re8+ {[%clk 0:00:03.9]} 33... Kh7 {[%clk 0:00:12.5]} 34. Bxd1 {[%clk
0:00:03.1]} 34... Bd4 {[%clk 0:00:11.4]} 35. Bc2+ {[%clk 0:00:03.2]} 35... g6
{[%clk 0:00:11.9]} 36. Rd8 {[%clk 0:00:02]} 36... Bxc3+ {[%clk 0:00:08.5]} 37.
bxc3 {[%clk 0:00:02.9]} 37... Qe5 {[%clk 0:00:06.7]} 38. Rd3 {[%clk 0:00:03]}
38... Kg7 {[%clk 0:00:06.1]} 39. Re3 {[%clk 0:00:03.6]} 39... Qc5 {[%clk
0:00:06.2]} 40. Bd3 {[%clk 0:00:02.2]} 40... a5 {[%clk 0:00:06.1]} 41. Re6
{[%clk 0:00:02.5]} 41... Qf2+ {[%clk 0:00:05.3]} 42. Be2 {[%clk 0:00:02.1]}
42... Qxg3 {[%clk 0:00:05.2]} 43. Rxb6 {[%clk 0:00:02.4]} 43... Qxh4 {[%clk
0:00:05.2]} 44. Rb7+ {[%clk 0:00:01.9]} 44... Kf6 {[%clk 0:00:05.3]} 45. c4
{[%clk 0:00:02.1]} 45... Qd4+ {[%clk 0:00:05.1]} 46. Bd3 {[%clk 0:00:02.6]}
46... a4 {[%clk 0:00:04.8]} 47. Rb5 {[%clk 0:00:01.2]} 47... a3 {[%clk
0:00:04.5]} 0-1

[Event "Early-Titled-Tuesday-Blitz-April-16-2024"]
[Site "Chess.com"]
[Date "2024.04.16"]
[Round "6"]
[White "Nechitaylo_Nikita"]
[Black "tarno17"]
[Result "1/2-1/2"]
[WhiteElo "2287"]
[BlackElo "2123"]
[TimeControl "180+1"]
[EndTime "9:08:45 PDT"]
[Termination "Game drawn - insufficient material"]

1. d4 {[%clk 0:02:46]} 1... d5 {[%clk 0:02:59.8]} 2. c4 {[%clk 0:02:45.4]} 2...
e6 {[%clk 0:03:00.5]} 3. Nc3 {[%clk 0:02:45.3]} 3... Nf6 {[%clk 0:03:01.2]} 4.
cxd5 {[%clk 0:02:45.7]} 4... exd5 {[%clk 0:03:01.4]} 5. Bg5 {[%clk 0:02:46.3]}
5... Be7 {[%clk 0:03:02]} 6. e3 {[%clk 0:02:46.4]} 6... O-O {[%clk 0:03:02.5]}
7. Bd3 {[%clk 0:02:47]} 7... h6 {[%clk 0:03:03.2]} 8. Bh4 {[%clk 0:02:47]} 8...
b6 {[%clk 0:03:02.4]} 9. Nf3 {[%clk 0:02:44.7]} 9... Bb7 {[%clk 0:03:02.9]} 10.
O-O {[%clk 0:02:45.2]} 10... Nbd7 {[%clk 0:03:03.5]} 11. Rc1 {[%clk 0:02:39.6]}
11... Ne4 {[%clk 0:02:49.3]} 12. Bxe7 {[%clk 0:02:22.9]} 12... Qxe7 {[%clk
0:02:49.8]} 13. Nxe4 {[%clk 0:02:12.7]} 13... dxe4 {[%clk 0:02:41.4]} 14. Rxc7
{[%clk 0:02:12.1]} 14... Bc8 {[%clk 0:02:20.6]} 15. Bb5 {[%clk 0:01:09.1]} 15...
exf3 {[%clk 0:02:10.8]} 16. Qxf3 {[%clk 0:01:09.4]} 16... Rb8 {[%clk 0:02:04.8]}
17. Rxa7 {[%clk 0:01:07.5]} 17... Qd6 {[%clk 0:01:58.2]} 18. Rc1 {[%clk
0:00:58]} 18... Nf6 {[%clk 0:01:51.6]} 19. a3 {[%clk 0:00:50.5]} 19... Bg4
{[%clk 0:01:45.9]} 20. Qg3 {[%clk 0:00:48.6]} 20... Qxg3 {[%clk 0:01:36.6]} 21.
hxg3 {[%clk 0:00:49.5]} 21... Rfc8 {[%clk 0:01:19]} 22. Rxc8+ {[%clk 0:00:32.7]}
22... Bxc8 {[%clk 0:01:12.8]} 23. Bc4 {[%clk 0:00:29.4]} 23... Be6 {[%clk
0:01:04]} 24. Bxe6 {[%clk 0:00:29.3]} 24... fxe6 {[%clk 0:01:04.6]} 25. Re7
{[%clk 0:00:29.4]} 25... Re8 {[%clk 0:00:54.8]} 26. Rb7 {[%clk 0:00:29.4]} 26...
Nd5 {[%clk 0:00:52.9]} 27. e4 {[%clk 0:00:29.6]} 27... Nf6 {[%clk 0:00:51.8]}
28. f3 {[%clk 0:00:30.2]} 28... Nh5 {[%clk 0:00:41.5]} 29. g4 {[%clk 0:00:19.2]}
29... Nf4 {[%clk 0:00:38.8]} 30. Kf2 {[%clk 0:00:17.4]} 30... Nd3+ {[%clk
0:00:38.4]} 31. Ke2 {[%clk 0:00:15]} 31... Nxb2 {[%clk 0:00:38]} 32. Rxb6 {[%clk
0:00:14.5]} 32... Nc4 {[%clk 0:00:38.4]} 33. Ra6 {[%clk 0:00:10.8]} 33... Kf7
{[%clk 0:00:32.7]} 34. a4 {[%clk 0:00:10.5]} 34... Rb8 {[%clk 0:00:25.5]} 35.
Kd3 {[%clk 0:00:09.7]} 35... Na3 {[%clk 0:00:18.5]} 36. f4 {[%clk 0:00:05]}
36... Rb3+ {[%clk 0:00:17.3]} 37. Ke2 {[%clk 0:00:03.6]} 37... Nc4 {[%clk
0:00:16.3]} 38. f5 {[%clk 0:00:02.3]} 38... Re3+ {[%clk 0:00:14.5]} 39. Kf2
{[%clk 0:00:03]} 39... Rxe4 {[%clk 0:00:14.9]} 40. fxe6+ {[%clk 0:00:03.3]}
40... Rxe6 {[%clk 0:00:13.1]} 41. Rxe6 {[%clk 0:00:03.3]} 41... Kxe6 {[%clk
0:00:13.7]} 42. Ke2 {[%clk 0:00:03]} 42... Kd5 {[%clk 0:00:12.5]} 43. g5 {[%clk
0:00:01.9]} 43... hxg5 {[%clk 0:00:12.3]} 44. Kf3 {[%clk 0:00:02.4]} 44... Kxd4
{[%clk 0:00:09]} 45. Kg4 {[%clk 0:00:02.8]} 45... Ne3+ {[%clk 0:00:04.4]} 46.
Kxg5 {[%clk 0:00:03.2]} 46... Nxg2 {[%clk 0:00:03.7]} 47. a5 {[%clk 0:00:02.4]}
47... Kc5 {[%clk 0:00:04.1]} 48. a6 {[%clk 0:00:03]} 48... Kb6 {[%clk
0:00:04.4]} 49. a7 {[%clk 0:00:03.8]} 49... Kxa7 {[%clk 0:00:04.8]} 50. Kg6
{[%clk 0:00:04.7]} 50... Nf4+ {[%clk 0:00:03.3]} 51. Kxg7 {[%clk 0:00:05.6]}
1/2-1/2

[Event "Early-Titled-Tuesday-Blitz-April-16-2024"]
[Site "Chess.com"]
[Date "2024.04.16"]
[Round "6"]
[White "Silvederione"]
[Black "kripri"]
[Result "0-1"]
[WhiteElo "2504"]
[BlackElo "2363"]
[TimeControl "180+1"]
[EndTime "9:08:50 PDT"]
[Termination "kripri won by resignation"]

1. d4 {[%clk 0:03:00.9]} 1... d5 {[%clk 0:02:59.5]} 2. Nc3 {[%clk 0:03:00.8]}
2... Nf6 {[%clk 0:02:59.1]} 3. Bf4 {[%clk 0:03:00.9]} 3... a6 {[%clk 0:02:58.7]}
4. e3 {[%clk 0:03:01.4]} 4... e6 {[%clk 0:02:58.5]} 5. Bd3 {[%clk 0:03:00.6]}
5... c5 {[%clk 0:02:58.9]} 6. dxc5 {[%clk 0:03:01.5]} 6... Bxc5 {[%clk
0:02:58.6]} 7. Nf3 {[%clk 0:03:02.2]} 7... O-O {[%clk 0:02:58.3]} 8. O-O {[%clk
0:03:02.8]} 8... Nc6 {[%clk 0:02:58.7]} 9. e4 {[%clk 0:03:03.3]} 9... d4 {[%clk
0:02:58.4]} 10. e5 {[%clk 0:02:35.6]} 10... dxc3 {[%clk 0:02:54.6]} 11. exf6
{[%clk 0:02:35.8]} 11... g6 {[%clk 0:02:13.5]} 12. Bg5 {[%clk 0:01:58.1]} 12...
cxb2 {[%clk 0:02:07.5]} 13. Rb1 {[%clk 0:01:58.4]} 13... e5 {[%clk 0:01:50]} 14.
Rxb2 {[%clk 0:01:48.7]} 14... Re8 {[%clk 0:01:27.7]} 15. Be4 {[%clk 0:01:39]}
15... Qc7 {[%clk 0:01:22.2]} 16. h3 {[%clk 0:01:26.1]} 16... Be6 {[%clk
0:01:15.5]} 17. Qb1 {[%clk 0:01:13.3]} 17... Rab8 {[%clk 0:00:49.3]} 18. Rd1
{[%clk 0:01:12.3]} 18... Bc4 {[%clk 0:00:21.9]} 19. c3 {[%clk 0:00:59.7]} 19...
b5 {[%clk 0:00:21.6]} 20. a4 {[%clk 0:00:55.4]} 20... bxa4 {[%clk 0:00:20]} 21.
Rxb8 {[%clk 0:00:19.9]} 21... Rxb8 {[%clk 0:00:19.9]} 22. Qa1 {[%clk 0:00:19.2]}
22... Bb3 {[%clk 0:00:16.7]} 23. Rb1 {[%clk 0:00:16.6]} 23... Na5 {[%clk
0:00:15.6]} 24. Be3 {[%clk 0:00:14.1]} 24... Bxe3 {[%clk 0:00:15.3]} 25. fxe3
{[%clk 0:00:15]} 25... Qc5 {[%clk 0:00:15.6]} 26. Kf2 {[%clk 0:00:14.5]} 26...
Nc4 {[%clk 0:00:15.9]} 27. Re1 {[%clk 0:00:13]} 27... a3 {[%clk 0:00:16.3]} 28.
Re2 {[%clk 0:00:12.1]} 28... Ba4 {[%clk 0:00:16.4]} 29. Nd2 {[%clk 0:00:11.7]}
29... Rb2 {[%clk 0:00:16.3]} 30. Nxc4 {[%clk 0:00:11.1]} 30... Rxe2+ {[%clk
0:00:16.9]} 31. Kxe2 {[%clk 0:00:12]} 31... Qxc4+ {[%clk 0:00:17.4]} 32. Bd3
{[%clk 0:00:12.9]} 32... Qc6 {[%clk 0:00:17.8]} 33. Qxa3 {[%clk 0:00:12.9]}
33... Qxg2+ {[%clk 0:00:18.1]} 34. Ke1 {[%clk 0:00:13.5]} 34... Qg1+ {[%clk
0:00:17.5]} 35. Kd2 {[%clk 0:00:13.7]} 35... Qf2+ {[%clk 0:00:17.8]} 36. Kc1
{[%clk 0:00:13.1]} 36... Qe1+ {[%clk 0:00:17.9]} 37. Kb2 {[%clk 0:00:13.2]}
37... Qd2+ {[%clk 0:00:18.1]} 38. Ka1 {[%clk 0:00:12.6]} 38... Qd1+ {[%clk
0:00:17.5]} 39. Bb1 {[%clk 0:00:11.8]} 39... Bc2 {[%clk 0:00:17.3]} 40. Qb2
{[%clk 0:00:12.2]} 40... Qxb1+ {[%clk 0:00:15.7]} 41. Qxb1 {[%clk 0:00:12.5]}
41... Bxb1 {[%clk 0:00:16.6]} 42. Kxb1 {[%clk 0:00:12.9]} 42... g5 {[%clk
0:00:16.6]} 43. c4 {[%clk 0:00:13.1]} 43... Kf8 {[%clk 0:00:17]} 44. c5 {[%clk
0:00:13.8]} 44... Ke8 {[%clk 0:00:17.5]} 45. Kc2 {[%clk 0:00:14.4]} 45... h5
{[%clk 0:00:17.4]} 46. Kd3 {[%clk 0:00:15.3]} 46... Kd7 {[%clk 0:00:17]} 47. Ke4
{[%clk 0:00:15.4]} 47... a5 {[%clk 0:00:17.5]} 48. Kxe5 {[%clk 0:00:14.4]} 48...
a4 {[%clk 0:00:18]} 49. Kf5 {[%clk 0:00:14.6]} 49... a3 {[%clk 0:00:18.2]} 50.
Kxg5 {[%clk 0:00:14.8]} 50... a2 {[%clk 0:00:18.6]} 51. e4 {[%clk 0:00:15.5]}
51... a1=Q {[%clk 0:00:18.9]} 52. Kf5 {[%clk 0:00:16.4]} 52... Qd4 {[%clk
0:00:18.5]} 53. e5 {[%clk 0:00:16.7]} 53... Qxc5 {[%clk 0:00:18.4]} 54. Kf4
{[%clk 0:00:16.6]} 54... Ke6 {[%clk 0:00:18.6]} 55. h4 {[%clk 0:00:16.7]} 55...
Qxe5+ {[%clk 0:00:19.1]} 56. Kf3 {[%clk 0:00:17.3]} 56... Kxf6 {[%clk
0:00:19.9]} 57. Kg2 {[%clk 0:00:17.2]} 57... Kf5 {[%clk 0:00:20.5]} 58. Kh3
{[%clk 0:00:18.1]} 58... Kf4 {[%clk 0:00:20.9]} 59. Kg2 {[%clk 0:00:18.5]} 59...
Kg4 {[%clk 0:00:21.3]} 60. Kf2 {[%clk 0:00:18.9]} 60... Qe4 {[%clk 0:00:20.4]}
61. Kg1 {[%clk 0:00:19.2]} 61... Kg3 {[%clk 0:00:19.6]} 0-1

[Event "Early-Titled-Tuesday-Blitz-April-16-2024"]
[Site "Chess.com"]
[Date "2024.04.16"]
[Round "6"]
[White "GreenPeach24"]
[Black "campochess"]
[Result "1-0"]
[WhiteElo "2448"]
[BlackElo "2218"]
[TimeControl "180+1"]
[EndTime "9:08:50 PDT"]
[Termination "GreenPeach24 won by checkmate"]

1. e4 {[%clk 0:03:00.9]} 1... c5 {[%clk 0:02:59.1]} 2. Nf3 {[%clk 0:03:00.2]}
2... Nc6 {[%clk 0:02:59.1]} 3. Bb5 {[%clk 0:02:59.5]} 3... e5 {[%clk 0:02:56.8]}
4. c3 {[%clk 0:02:56]} 4... Bd6 {[%clk 0:02:56.6]} 5. Na3 {[%clk 0:02:51]} 5...
Bc7 {[%clk 0:02:44.3]} 6. Nc4 {[%clk 0:02:46.1]} 6... d6 {[%clk 0:02:43.7]} 7.
d4 {[%clk 0:02:42.7]} 7... a6 {[%clk 0:02:37.4]} 8. Bxc6+ {[%clk 0:02:41.8]}
8... bxc6 {[%clk 0:02:36]} 9. dxc5 {[%clk 0:02:42.2]} 9... d5 {[%clk 0:02:33.1]}
10. exd5 {[%clk 0:02:32.7]} 10... cxd5 {[%clk 0:02:31.5]} 11. Ncxe5 {[%clk
0:02:29.9]} 11... Nf6 {[%clk 0:02:29.6]} 12. O-O {[%clk 0:02:24.2]} 12... O-O
{[%clk 0:02:29.3]} 13. Be3 {[%clk 0:02:21.9]} 13... Re8 {[%clk 0:02:27]} 14. Bd4
{[%clk 0:02:21.8]} 14... Ne4 {[%clk 0:02:21.1]} 15. Re1 {[%clk 0:01:53.4]} 15...
f6 {[%clk 0:02:19.7]} 16. Nc6 {[%clk 0:01:45.8]} 16... Qd7 {[%clk 0:02:14.8]}
17. Nb4 {[%clk 0:01:45.7]} 17... a5 {[%clk 0:02:10.3]} 18. Nc2 {[%clk
0:01:42.4]} 18... Ba6 {[%clk 0:02:01.9]} 19. Ne3 {[%clk 0:01:40.1]} 19... Rad8
{[%clk 0:01:57.4]} 20. b4 {[%clk 0:01:28.4]} 20... Kh8 {[%clk 0:01:52.1]} 21. a4
{[%clk 0:01:22.6]} 21... Nxc3 {[%clk 0:01:48.6]} 22. Bxc3 {[%clk 0:01:19.8]}
22... axb4 {[%clk 0:01:46]} 23. Bxb4 {[%clk 0:01:12.1]} 23... d4 {[%clk
0:01:46]} 24. Nf1 {[%clk 0:01:11.2]} 24... Qg4 {[%clk 0:01:36.2]} 25. Qxd4
{[%clk 0:00:40.6]} 25... Qxd4 {[%clk 0:01:23.8]} 26. Nxd4 {[%clk 0:00:37.5]}
26... Be5 {[%clk 0:01:23]} 27. Rad1 {[%clk 0:00:26.2]} 27... h5 {[%clk
0:01:14.8]} 28. Nf3 {[%clk 0:00:20.4]} 28... Bc7 {[%clk 0:01:08.8]} 29. Rxe8+
{[%clk 0:00:19.7]} 29... Rxe8 {[%clk 0:01:08.9]} 30. Ne3 {[%clk 0:00:19.9]}
30... Re4 {[%clk 0:01:07.9]} 31. Rd4 {[%clk 0:00:16.8]} 31... Re8 {[%clk
0:01:02.9]} 32. Rd7 {[%clk 0:00:16]} 32... Bf4 {[%clk 0:01:02.9]} 33. Bd2 {[%clk
0:00:15.9]} 33... Be2 {[%clk 0:00:56.3]} 34. Nd4 {[%clk 0:00:15]} 34... Bd3
{[%clk 0:00:52.5]} 35. g3 {[%clk 0:00:14.4]} 35... Be5 {[%clk 0:00:51.2]} 36. c6
{[%clk 0:00:13.2]} 36... Rc8 {[%clk 0:00:44.4]} 37. Nb5 {[%clk 0:00:09.2]} 37...
Be4 {[%clk 0:00:40.6]} 38. c7 {[%clk 0:00:09.2]} 38... Bc6 {[%clk 0:00:38.6]}
39. Rd8+ {[%clk 0:00:09.5]} 39... Rxd8 {[%clk 0:00:32.6]} 40. cxd8=Q+ {[%clk
0:00:09.3]} 40... Kh7 {[%clk 0:00:32.9]} 41. Qd3+ {[%clk 0:00:09.9]} 41... g6
{[%clk 0:00:29]} 42. Nc4 {[%clk 0:00:10]} 42... Ba1 {[%clk 0:00:26.5]} 43. Bf4
{[%clk 0:00:10.1]} 43... Kg7 {[%clk 0:00:22.2]} 44. Nb6 {[%clk 0:00:10]} 44...
g5 {[%clk 0:00:20.2]} 45. Be3 {[%clk 0:00:09.9]} 45... h4 {[%clk 0:00:18.5]} 46.
Nd4 {[%clk 0:00:09.9]} 46... hxg3 {[%clk 0:00:17.2]} 47. hxg3 {[%clk 0:00:08.9]}
47... Bb7 {[%clk 0:00:11.3]} 48. Nf5+ {[%clk 0:00:08.6]} 48... Kg6 {[%clk
0:00:04.5]} 49. Qd7 {[%clk 0:00:08.1]} 49... Be4 {[%clk 0:00:02.5]} 50. Nd6
{[%clk 0:00:06.6]} 50... Bf3 {[%clk 0:00:01.8]} 51. Qf7+ {[%clk 0:00:06.5]}
51... Kh6 {[%clk 0:00:01.2]} 52. Nf5# {[%clk 0:00:07.2]} 1-0

[Event "Early-Titled-Tuesday-Blitz-April-16-2024"]
[Site "Chess.com"]
[Date "2024.04.16"]
[Round "6"]
[White "RebelJohnny"]
[Black "Josgar05"]
[Result "0-1"]
[WhiteElo "2603"]
[BlackElo "2459"]
[TimeControl "180+1"]
[EndTime "9:08:51 PDT"]
[Termination "Josgar05 won on time"]

1. e4 {[%clk 0:02:56.8]} 1... g6 {[%clk 0:02:59.7]} 2. d4 {[%clk 0:02:54.8]}
2... Bg7 {[%clk 0:03:00.2]} 3. Nc3 {[%clk 0:02:54.3]} 3... c6 {[%clk 0:03:00.7]}
4. Nf3 {[%clk 0:02:30.3]} 4... d5 {[%clk 0:03:00.5]} 5. e5 {[%clk 0:02:30.5]}
5... Nh6 {[%clk 0:02:59.6]} 6. h3 {[%clk 0:02:27.2]} 6... O-O {[%clk 0:02:59.1]}
7. Bf4 {[%clk 0:02:17.3]} 7... f6 {[%clk 0:02:54.3]} 8. exf6 {[%clk 0:02:15]}
8... exf6 {[%clk 0:02:54.8]} 9. Qd2 {[%clk 0:02:11.7]} 9... Nf5 {[%clk
0:02:54.8]} 10. O-O-O {[%clk 0:02:06.5]} 10... Nd6 {[%clk 0:02:48.9]} 11. Bh6
{[%clk 0:01:56]} 11... Nd7 {[%clk 0:02:38.4]} 12. Bxg7 {[%clk 0:01:47.5]} 12...
Kxg7 {[%clk 0:02:39.3]} 13. g4 {[%clk 0:01:45.1]} 13... Nb6 {[%clk 0:02:33.2]}
14. b3 {[%clk 0:01:35.5]} 14... a5 {[%clk 0:02:32.9]} 15. Bd3 {[%clk 0:01:29.9]}
15... a4 {[%clk 0:02:32.5]} 16. Kb2 {[%clk 0:01:17.4]} 16... axb3 {[%clk
0:02:10.5]} 17. axb3 {[%clk 0:01:17.2]} 17... Qe7 {[%clk 0:02:11.1]} 18. Nb1
{[%clk 0:00:29.8]} 18... Qc7 {[%clk 0:01:09.6]} 19. Qb4 {[%clk 0:00:22]} 19...
Nd7 {[%clk 0:00:44.3]} 20. Nc3 {[%clk 0:00:16.4]} 20... b6 {[%clk 0:00:43]} 21.
Ra1 {[%clk 0:00:16.1]} 21... Bb7 {[%clk 0:00:43.2]} 22. Rxa8 {[%clk 0:00:15.6]}
22... Rxa8 {[%clk 0:00:42.9]} 23. Ra1 {[%clk 0:00:16.3]} 23... c5 {[%clk
0:00:37.5]} 24. dxc5 {[%clk 0:00:05.2]} 24... bxc5 {[%clk 0:00:37.9]} 25. Nb5
{[%clk 0:00:05.9]} 25... Qb6 {[%clk 0:00:28.8]} 26. Qf4 {[%clk 0:00:02.7]} 26...
Nxb5 {[%clk 0:00:26.1]} 27. Rxa8 {[%clk 0:00:03]} 27... Bxa8 {[%clk 0:00:26.1]}
28. g5 {[%clk 0:00:03.6]} 28... Qa5 {[%clk 0:00:18.1]} 29. gxf6+ {[%clk
0:00:03.5]} 29... Nxf6 {[%clk 0:00:19]} 30. Bxb5 {[%clk 0:00:03.1]} 30... Qxb5
{[%clk 0:00:19.6]} 31. Qc7+ {[%clk 0:00:03.5]} 31... Qd7 {[%clk 0:00:19.2]} 32.
Qxc5 {[%clk 0:00:03.5]} 32... d4 {[%clk 0:00:19.6]} 33. Nxd4 {[%clk 0:00:03.2]}
33... Be4 {[%clk 0:00:19.6]} 34. Qe5 {[%clk 0:00:02.7]} 34... Bd5 {[%clk
0:00:19.2]} 35. c4 {[%clk 0:00:02.9]} 35... Bf7 {[%clk 0:00:19.6]} 36. Kc3
{[%clk 0:00:03.5]} 36... Qa7 {[%clk 0:00:19.3]} 37. f3 {[%clk 0:00:02.2]} 37...
Qa1+ {[%clk 0:00:19.4]} 38. Kb4 {[%clk 0:00:02.9]} 38... Qa7 {[%clk 0:00:17.2]}
39. Kc3 {[%clk 0:00:02.8]} 39... Qb6 {[%clk 0:00:16.4]} 40. b4 {[%clk 0:00:03]}
40... Kg8 {[%clk 0:00:15.6]} 41. c5 {[%clk 0:00:03.2]} 41... Qa6 {[%clk
0:00:16.2]} 42. Nb3 {[%clk 0:00:02.5]} 42... Nd7 {[%clk 0:00:15.3]} 43. Qd6
{[%clk 0:00:02.3]} 43... Qc4+ {[%clk 0:00:15.5]} 44. Kd2 {[%clk 0:00:02.3]}
44... Qxb3 {[%clk 0:00:15.9]} 45. Qxd7 {[%clk 0:00:02.9]} 45... Qxb4+ {[%clk
0:00:15.8]} 46. Ke2 {[%clk 0:00:02.6]} 46... Qxc5 {[%clk 0:00:15.6]} 47. f4
{[%clk 0:00:02.1]} 47... Qd5 {[%clk 0:00:14.7]} 48. Qc8+ {[%clk 0:00:01.6]}
48... Kg7 {[%clk 0:00:15.2]} 49. Qc3+ {[%clk 0:00:01.3]} 49... Kh6 {[%clk
0:00:15.9]} 50. Qe3 {[%clk 0:00:01.2]} 50... Qc4+ {[%clk 0:00:15.8]} 51. Kf2
{[%clk 0:00:01.4]} 51... Bd5 {[%clk 0:00:14.6]} 52. Kg3 {[%clk 0:00:01.5]} 52...
Qb3 {[%clk 0:00:14]} 0-1